fUSD/lending_fUSD_20241230
["ID","MTS","AMOUNT","RATE_DAILY","PERIOD"]
[347143905,1735521044124,-29474.42906553,0.00016438,2]
[347143906,1735521044133,-2186.96,0.00016438,2]
[347143907,1735521044143,-300.0,0.00016438,2]
[347143908,1735521044152,-150.0,0.00016438,2]
[347143909,1735521044162,-2256.77779478,0.00016438,2]
[347143910,1735521044172,-10995.00843696,0.00016441,2]
[347143911,1735521044181,-200.0,0.00016441,2]
[347143912,1735521044191,-6681.67417722,0.00016441,2]
[347143913,1735521044200,-6681.67417722,0.00016441,2]
[347143914,1735521044209,-3675.15288573,0.00016442,2]
[347143915,1735521044219,-13396.68168777,0.00016443,2]
[347143916,1735521044229,-200.0,0.00016444,2]
[347143917,1735521044238,-10711.33056671,0.00016445,2]
[347143918,1735521044247,-630.20169086,0.00016446,2]
[347143919,1735521044257,-3675.15288574,0.00016447,2]
[347143920,1735521044267,-13396.68168777,0.00016449,2]
[347143921,1735521044276,-630.20169086,0.00016449,2]
[347143922,1735521044285,-3675.15288573,0.00016449,2]
[347143923,1735521044297,-630.20169086,0.00016452,2]
[347143924,1735521044307,-6681.67417722,0.00016452,2]
[347143925,1735521044316,-6681.67417722,0.00016452,2]
[347143926,1735521044325,-29474.42906553,0.00016453,2]
[347143927,1735521044335,-10995.00843696,0.00016454,2]
[347143928,1735521044344,-3675.15288573,0.00016454,2]
[347143929,1735521044354,-6681.67417722,0.00016454,2]
[347143930,1735521044363,-200.0,0.00016456,2]
[347143931,1735521044372,-10711.33056671,0.00016456,2]
[347143932,1735521044382,-3675.15288574,0.00016459,2]
[347143933,1735521044391,-200.0,0.00016459,2]
[347143934,1735521044401,-630.20169086,0.00016459,2]
[347143935,1735521044411,-13396.68168777,0.00016459,2]
[347143936,1735521044421,-630.20169086,0.0001646,2]
[347143937,1735521044430,-2256.77779478,0.0001646,2]
[347143938,1735521044439,-2476.82753543,0.0001646,2]
[347143939,1735521044448,-3675.15288573,0.00016461,2]
[347143940,1735521044458,-10995.00843696,0.00016461,2]
[347143941,1735521044467,-10995.00843696,0.00016462,2]
[347143942,1735521044476,-22735.2926084,0.00016462,5]
[347143943,1735521044486,-2256.77779478,0.00016463,2]
[347143944,1735521044495,-29474.42906553,0.00016464,2]
[347143945,1735521044504,-200.0,0.00016464,2]
[347143946,1735521044514,-2256.77779478,0.00016464,2]
[347143947,1735521044523,-10995.00843696,0.00016466,2]
[347143948,1735521044532,-2476.82753543,0.00016466,2]
[347143949,1735521044542,-2476.82753543,0.00016466,2]
[347143950,1735521044552,-3675.15288573,0.00016468,2]
[347143951,1735521044562,-29474.42906553,0.00016468,2]
[347143952,1735521044571,-3675.15288574,0.0001647,2]
[347143953,1735521044580,-10711.33056671,0.0001647,2]
[347143954,1735521044589,-6681.67417722,0.0001647,2]
[347143955,1735521044598,-13396.68168777,0.0001647,2]
[347143956,1735521044608,-581.0158844,0.00016473,2]
[347143957,1735521044617,-300.0,0.00016488,2]
[347143958,1735521044626,-300.0,0.00016488,2]
[347143959,1735521044635,-300.0,0.00016488,2]
[347143960,1735521044644,-300.0,0.00016488,2]
[347143961,1735521044654,-21110.8556536,0.00016489,2]
[347143962,1735521044663,-18214.8784413,0.00016489,2]
[347143963,1735521044673,-15318.901229,0.00016489,2]
[347143964,1735521044682,-12422.9240166,0.00016489,2]
[347143965,1735521044691,-9526.9468043,0.00016489,2]
[347143966,1735521044701,-8083.6541594,0.00016489,2]
[347143967,1735521044710,-6988.2466291,0.00016489,2]
[347143968,1735521044719,-5892.8390988,0.00016489,2]
[347143969,1735521044729,-4797.4315685,0.00016489,2]
[347143970,1735521044738,-3702.0240382,0.00016489,2]
[347143971,1735521044747,-300.0,0.00016492,2]
[347143972,1735521044756,-300.0,0.00016492,2]
[347143973,1735521044766,-1532.32,0.00016493,2]
[347143974,1735521044775,-437.4,0.00016493,2]
[347143975,1735521044784,-300.0,0.00016496,2]
[347143976,1735521044794,-300.0,0.00016496,2]
[347143977,1735521044803,-300.0,0.00016497,2]
[347143978,1735521044812,-300.0,0.00016497,2]
[347143979,1735521044821,-300.0,0.00016497,2]
[347143980,1735521044831,-300.0,0.00016497,2]
[347143981,1735521044840,-300.0,0.00016498,2]
[347143982,1735521044849,-300.0,0.00016498,2]
[347143983,1735521044859,-300.0,0.00016498,2]
[347143984,1735521044868,-300.0,0.00016498,2]
[347143985,1735521044877,-300.0,0.00016498,2]
[347143986,1735521044887,-300.0,0.00016498,2]
[347143987,1735521044896,-1000.0,0.00016498,2]
[347143988,1735521044907,-1000.0,0.00016498,2]
[347143989,1735521044918,-1000.0,0.00016498,2]
[347143990,1735521044927,-1000.0,0.00016498,2]
[347143991,1735521044937,-1000.0,0.00016498,2]
[347143992,1735521044946,-1000.0,0.00016498,2]
[347143993,1735521044957,-1000.0,0.00016498,2]
[347143994,1735521044966,-1000.0,0.00016498,2]
[347143995,1735521044975,-1000.0,0.00016498,2]
[347143996,1735521044985,-1000.0,0.00016498,2]
[347143997,1735521044994,-666.12301,0.00016498,2]
[347143998,1735521045004,-666.12301,0.00016498,2]
[347143999,1735521045013,-666.12301,0.00016498,2]
[347144000,1735521045022,-160140.39679856,0.00016499,2]
[347144001,1735521045356,-673.37089471,0.00016499,2]
[347144003,1735521045474,-2747.03,0.00016499,2]
[347144004,1735521045486,-159382.028436,0.00016499,2]
[347144006,1735521046101,-1377.29719238,0.00015645,2]
[347144007,1735521046111,-48753.40749015,0.00016499,2]
[347144008,1735521046122,-22962.09038652,0.00016499,2]
[347144026,1735521046543,-7228.76,0.00016499,2]
[347144027,1735521046598,-680620.789429,0.00016499,2]
[347144028,1735521046609,-250754.36452485,0.00016499,2]
[347144029,1735521046620,-10853.99999999,0.00016499,2]
[347144030,1735521046630,-1126.83831642,0.00016499,2]
[347144031,1735521046641,-1116.78320645,0.00016499,2]
[347144032,1735521227383,500.0,0.00016399,120]
[347144033,1735521238641,27000.0,0.00023,120]
[347144034,1735521350320,29000.0,0.00023,120]
[347144035,1735521744646,258.87,0.00010137,2]
[347144036,1735521903146,223.78,0.00023,120]
[347144041,1735522187898,1519.4093285,0.00023,120]
[347144042,1735522198713,53001.27,0.00023,120]
[347144052,1735522232011,-450.0,0.00012,2]
[347144053,1735522232021,-207.78417891,0.000127,7]
[347144054,1735522232031,-9245.02394748,0.00012984,2]
[347144055,1735522232041,-501.86,0.00012984,2]
[347144056,1735522232051,-498.89,0.00012984,2]
[347144057,1735522232061,-492.11,0.00012984,2]
[347144058,1735522232071,-505.14,0.00012984,2]
[347144059,1735522232080,-508.02,0.00012984,2]
[347144060,1735522232098,-491.73,0.00012984,2]
[347144061,1735522232109,-503.08,0.00012984,2]
[347144062,1735522232119,-504.7,0.00012984,2]
[347144063,1735522232130,-504.18,0.00012984,2]
[347144064,1735522232140,-507.71,0.00012984,2]
[347144065,1735522232150,-494.03,0.00012984,2]
[347144066,1735522232160,-504.44,0.00012984,2]
[347144067,1735522232171,-505.51,0.00012984,2]
[347144068,1735522232181,-501.11,0.00012984,2]
[347144069,1735522232192,-497.7,0.00012984,2]
[347144070,1735522232202,-509.83,0.00012984,2]
[347144071,1735522232213,-504.56,0.00012984,2]
[347144072,1735522232223,-710.37,0.00013112,2]
[347144073,1735522232234,-392.0,0.0001365,2]
[347144074,1735522232244,-1000.0,0.00013661,2]
[347144075,1735522232255,-499.53,0.00013669,2]
[347144076,1735522232265,-495.21,0.00013683,2]
[347144077,1735522232276,-23900.0,0.00013686,2]
[347144078,1735522232285,-499.05,0.0001371,2]
[347144079,1735522232296,-502.8,0.00013756,2]
[347144080,1735522232307,-492.16,0.0001384,2]
[347144081,1735522232319,-999.99,0.0001384,2]
[347144082,1735522232329,-299.99,0.0001384,2]
[347144083,1735522232343,-2142.78,0.0001384,2]
[347144084,1735522232354,-150.99,0.0001384,2]
[347144086,1735522232363,-150.99,0.0001384,2]
[347144088,1735522232373,-250.0,0.00013976,2]
[347144090,1735522232382,-10881.72948186,0.00014,2]
[347144091,1735522232393,-10394.11617621,0.00014,2]
[347144092,1735522232403,-500.0,0.00014,2]
[347144093,1735522232413,-1771.14,0.00014008,2]
[347144094,1735522232423,-262.77,0.00014024,2]
[347144095,1735522232432,-392.0,0.0001403,2]
[347144096,1735522232441,-392.0,0.0001441,2]
[347144097,1735522232451,-9245.02394748,0.00014484,2]
[347144098,1735522232460,-508.84,0.00014619,2]
[347144099,1735522232470,-392.0,0.000148,2]
[347144100,1735522232480,-320.59,0.00014862,2]
[347144101,1735522232490,-497.24,0.00014891,2]
[347144102,1735522232500,-499.63,0.00014891,2]
[347144103,1735522232509,-498.75,0.00014891,2]
[347144104,1735522232519,-700.0,0.00014891,2]
[347144105,1735522232528,-500.0,0.00014891,2]
[347144106,1735522232538,-1900.0,0.00014891,2]
[347144107,1735522232548,-3932.9,0.00014929,2]
[347144109,1735522232558,-127868.01218118,0.0001499,2]
[347144110,1735522232579,-1510.87977577,0.0001499,2]
[347144112,1735522232594,-512.40316024,0.0001499,2]
[347144113,1735522232606,-563.23994461,0.0001499,2]
[347144114,1735522232683,-509793.14766606,0.0001499,2]
[347144115,1735522232694,-550.99707701,0.0001499,2]
[347144116,1735522232705,-20281.2971691,0.0001499,2]
[347144117,1735522232716,-492.18846894,0.0001499,2]
[347144118,1735522232727,-451859.64748419,0.0001499,2]
[347144119,1735522232738,-436.89999985,0.0001499,2]
[347144120,1735522232749,-530.7318065,0.0001499,2]
[347144123,1735522237890,-1417.80450896,0.0001499,2]
[347144124,1735522237902,-432.6490037,0.0001499,2]
[347144125,1735522237912,-562.48,0.0001499,2]
[347144126,1735522237923,-13677.92265122,0.0001499,2]
[347144127,1735522238031,-1203.76742179,0.0001499,2]
[347144128,1735522238042,-6582.14610358,0.0001499,2]
[347144129,1735522238053,-178254.26424723,0.0001499,2]
[347144130,1735522238062,-174.5736158,0.00014997,2]
[347144131,1735522238072,-174.24,0.00015097,2]
[347144132,1735522238081,-296.83406919,0.000151,2]
[347144133,1735522238091,-174.24,0.00015122,2]
[347144134,1735522238101,-174.24,0.00015147,2]
[347144135,1735522238110,-174.57361571,0.00015151,2]
[347144136,1735522238119,-174.24,0.00015172,2]
[347144137,1735522238128,-392.0,0.0001518,2]
[347144138,1735522238137,-2999.99,0.0001522,2]
[347144139,1735522238146,-3000.0,0.0001522,2]
[347144140,1735522238155,-3000.0,0.0001522,2]
[347144141,1735522238164,-3000.0,0.0001522,2]
[347144142,1735522238173,-3000.0,0.0001522,2]
[347144143,1735522238440,-1311.86,0.0001522,2]
[347144144,1735522238451,-1224.49627612,0.00015235,2]
[347144145,1735522238460,-1517.64,0.000153,2]
[347144146,1735522238470,-174.57361571,0.00015304,2]
[347144147,1735522238479,-29999.99,0.0001531,2]
[347144148,1735522238488,-167.99,0.00015317,2]
[347144149,1735522238498,-300.0,0.00015335,2]
[347144150,1735522238507,-1000.0,0.00015369,2]
[347144151,1735522238517,-710.37,0.00015376,2]
[347144152,1735522238526,-15933.38689581,0.000154,2]
[347144153,1735522238535,-484.55878736,0.000154,2]
[347144154,1735522238544,-174.57361571,0.00015458,2]
[347144155,1735522238553,-206.07,0.00015497,2]
[347144156,1735522238562,-770.32,0.00015534,2]
[347144157,1735522238571,-874.31,0.00015541,2]
[347144158,1735522238580,-771.25,0.00015541,2]
[347144159,1735522238591,-771.25,0.00015541,2]
[347144160,1735522238600,-392.0,0.0001556,2]
[347144161,1735522238609,-152.0,0.00015578,3]
[347144162,1735522238618,-174.57361571,0.00015612,2]
[347144163,1735522238627,-970.28,0.00015671,2]
[347144164,1735522238635,-978.28,0.00015678,2]
[347144165,1735522238644,-150.0,0.00015678,2]
[347144166,1735522238653,-978.28,0.00015678,2]
[347144167,1735522238663,-150.0,0.00015678,2]
[347144168,1735522238672,-978.28,0.00015678,2]
[347144169,1735522238681,-150.0,0.00015678,2]
[347144170,1735522238690,-500.654,0.0001568,2]
[347144171,1735522238698,-1000.0,0.000157,2]
[347144172,1735522238707,-1000.0,0.000157,2]
[347144173,1735522238716,-5000.0,0.00015763,2]
[347144174,1735522238725,-174.57361571,0.00015765,2]
[347144175,1735522238735,-490.7,0.00015815,2]
[347144176,1735522238743,-1900.0,0.00015815,2]
[347144177,1735522238752,-3773.0,0.00015815,2]
[347144178,1735522238761,-919.0,0.00015815,2]
[347144179,1735522238770,-1257.0,0.00015815,2]
[347144180,1735522238779,-819.0,0.00015815,2]
[347144181,1735522238787,-536.0,0.00015815,2]
[347144182,1735522238796,-3719.0,0.00015815,2]
[347144183,1735522238806,-1102.0,0.00015815,2]
[347144184,1735522238815,-2013.0,0.00015815,2]
[347144185,1735522238824,-150.856,0.00015815,2]
[347144186,1735522238832,-151.0,0.00015815,2]
[347144187,1735522238845,-1267.589,0.00015815,2]
[347144188,1735522238854,-9605.0,0.00015815,2]
[347144189,1735522238863,-6332.513,0.00015837,2]
[347144190,1735522238872,-249.931,0.00015837,2]
[347144191,1735522238881,-174.57361571,0.00015919,2]
[347144192,1735522238889,-392.0,0.0001594,2]
[347144193,1735522238898,-260.0,0.0001597,2]
[347144194,1735522238908,-55564.65182942,0.0001598,2]
[347144195,1735522238917,-9245.02394748,0.00015984,2]
[347144196,1735522238927,-550.0,0.00016,2]
[347144197,1735522238936,-174.57361571,0.00016073,2]
[347144198,1735522238949,-1932.0,0.000161,2]
[347144199,1735522238958,-9999.99,0.00016116,2]
[347144200,1735522238968,-150.0,0.00016183,2]
[347144201,1735522238977,-150.0,0.00016205,2]
[347144202,1735522238986,-150.0,0.00016211,2]
[347144203,1735522238995,-152.0,0.00016213,4]
[347144204,1735522239005,-150.0,0.00016214,2]
[347144205,1735522239014,-150.0,0.00016218,2]
[347144206,1735522239024,-150.0,0.0001622,2]
[347144207,1735522239033,-150.0,0.00016221,2]
[347144208,1735522239042,-150.0,0.00016223,2]
[347144209,1735522239051,-174.57361571,0.00016226,2]
[347144210,1735522239061,-150.0,0.00016238,2]
[347144211,1735522239070,-150.0,0.00016239,2]
[347144212,1735522239079,-150.0,0.00016242,2]
[347144213,1735522239090,-150.0,0.00016253,2]
[347144214,1735522239099,-150.0,0.00016255,2]
[347144215,1735522239109,-150.0,0.00016255,2]
[347144216,1735522239119,-150.0,0.00016255,2]
[347144217,1735522239128,-150.0,0.00016258,2]
[347144218,1735522239137,-150.0,0.0001626,2]
[347144219,1735522239147,-700.0,0.00016261,2]
[347144220,1735522239156,-1900.0,0.00016261,2]
[347144221,1735522239166,-150.0,0.0001627,2]
[347144222,1735522239175,-150.0,0.00016272,2]
[347144223,1735522239184,-150.0,0.00016274,2]
[347144224,1735522239194,-150.0,0.00016283,2]
[347144225,1735522239204,-150.0,0.00016283,2]
[347144226,1735522239213,-150.0,0.00016285,2]
[347144227,1735522239223,-50000.00000099,0.000163,2]
[347144228,1735522239232,-150.0,0.00016302,2]
[347144229,1735522239241,-1500.0,0.00016305,2]
[347144230,1735522239250,-150.0,0.00016308,2]
[347144231,1735522239259,-506.93,0.00016309,2]
[347144232,1735522239269,-150.0,0.00016314,2]
[347144233,1735522239278,-150.0,0.0001632,2]
[347144234,1735522239287,-150.0,0.00016321,2]
[347144235,1735522239297,-150.0,0.00016322,2]
[347144236,1735522239309,-150.0,0.00016324,2]
[347144237,1735522239319,-1500.0,0.00016328,2]
[347144238,1735522239328,-392.0,0.0001633,2]
[347144239,1735522239338,-1500.0,0.0001633,2]
[347144240,1735522239347,-150.0,0.0001633,2]
[347144241,1735522239356,-568.92392,0.0001633,2]
[347144242,1735522239365,-150.0,0.00016333,2]
[347144243,1735522239374,-150.0,0.00016341,2]
[347144244,1735522239384,-150.0,0.00016342,2]
[347144245,1735522239395,-150.0,0.00016351,2]
[347144246,1735522239405,-150.0,0.00016352,2]
[347144247,1735522239415,-150.0,0.00016356,2]
[347144248,1735522239424,-429.34778484,0.00016356,2]
[347144249,1735522239433,-150.0,0.00016358,2]
[347144250,1735522239443,-150.0,0.00016358,2]
[347144251,1735522239452,-150.0,0.00016367,2]
[347144252,1735522239461,-500.0,0.00016367,2]
[347144253,1735522239471,-150.0,0.00016368,2]
[347144254,1735522239481,-150.0,0.0001637,2]
[347144255,1735522239490,-150.0,0.00016371,2]
[347144256,1735522239500,-150.0,0.00016374,2]
[347144257,1735522239510,-150.0,0.00016374,2]
[347144258,1735522239521,-150.0,0.00016375,2]
[347144259,1735522239531,-150.0,0.00016378,2]
[347144260,1735522239540,-170.01773482,0.0001638,2]
[347144261,1735522239550,-997.38761628,0.0001638,2]
[347144262,1735522239559,-174.57361571,0.0001638,2]
[347144263,1735522239568,-150.0,0.00016381,2]
[347144264,1735522239578,-150.0,0.00016384,2]
[347144265,1735522239587,-150.0,0.00016384,2]
[347144266,1735522239600,-150.0,0.00016387,2]
[347144267,1735522239609,-150.0,0.00016389,2]
[347144268,1735522239619,-170.01773482,0.0001639,2]
[347144269,1735522239628,-997.38761628,0.0001639,2]
[347144270,1735522239638,-1500.0,0.0001639,2]
[347144271,1735522239648,-150.0,0.00016399,2]
[347144272,1735522239657,-170.01773482,0.00016399,2]
[347144273,1735522239666,-150.0,0.00016399,2]
[347144274,1735522239675,-997.38761628,0.00016399,2]
[347144275,1735522239684,-150.0,0.00016401,2]
[347144276,1735522239693,-1556.0,0.00016416,2]
[347144277,1735522239706,-150.0,0.0001642,2]
[347144278,1735522239716,-150.0,0.0001642,2]
[347144279,1735522239725,-150.0,0.00016421,2]
[347144280,1735522239735,-150.0,0.00016422,2]
[347144281,1735522239744,-320.59631961,0.00016424,2]
[347144282,1735522239753,-320.59631961,0.0001643,2]
[347144283,1735522239762,-200.0,0.00016435,2]
[347144284,1735522239771,-1690.55,0.00016438,2]
[347144285,1735522239780,-150.0,0.00016438,2]
[347144287,1735522239790,-320.59631961,0.00016439,2]
[347144288,1735522239799,-150.0,0.00016441,2]
[347144290,1735522239808,-150.0,0.00016443,2]
[347144292,1735522239818,-150.0,0.00016443,2]
[347144294,1735522239828,-150.0,0.00016444,2]
[347144295,1735522239837,-1500.0,0.00016446,2]
[347144296,1735522239849,-150.0,0.00016446,2]
[347144297,1735522239859,-321.12301,0.00016448,2]
[347144298,1735522239869,-150.0,0.00016449,2]
[347144299,1735522239879,-150.0,0.00016449,2]
[347144300,1735522239888,-150.0,0.00016449,2]
[347144301,1735522239898,-30000.0,0.0001645,3]
[347144302,1735522239908,-150.0,0.00016451,2]
[347144303,1735522239917,-320.59631961,0.00016454,2]
[347144304,1735522239927,-320.59631961,0.00016456,2]
[347144305,1735522239938,-320.59631961,0.0001646,2]
[347144306,1735522239947,-1500.0,0.00016461,2]
[347144307,1735522239956,-150.0,0.00016465,2]
[347144308,1735522239965,-500.0,0.00016473,2]
[347144309,1735522239974,-500.0,0.00016473,2]
[347144310,1735522239984,-49149.73812921,0.00016478,5]
[347144311,1735522239993,-174.52938497,0.00016478,5]
[347144312,1735522240002,-2981921.14091836,0.00016479,2]
[347144313,1735522240054,-696.32846448,0.00016479,2]
[347144314,1735522240066,-254.60993666,0.00016479,2]
[347144315,1735522240079,-760.39087322,0.00016479,2]
[347144316,1735522240145,-2323.0856306,0.00016479,2]
[347144325,1735522240927,-8458.8754854,0.00014897,2]
[347144326,1735522240938,-3294.93649903,0.00014897,2]
[347144327,1735522241011,-9396.8,0.00014897,2]
[347144328,1735522241023,-1721.40042351,0.00014897,2]
[347144329,1735522241034,-1397.80406,0.00014897,2]
[347144330,1735522241044,-4892.76574989,0.00014897,2]
[347144350,1735522243711,-570.916685,0.00014897,2]
[347144351,1735522243722,-657.41777,0.00014897,2]
[347144352,1735522243733,-360.26241,0.00014897,2]
[347144354,1735522243743,-2122.12301554,0.00014897,2]
[347144359,1735522243859,-280.1210306,0.00014897,2]
[347144360,1735522243870,-1836.17592016,0.00014897,2]
[347144361,1735522243881,-453.76330507,0.00014897,2]
[347144362,1735522243892,-3715.65425446,0.00014897,2]
[347144363,1735522243903,-791.46804647,0.00014897,2]
[347144364,1735522243914,-4726.34999999,0.00014897,2]
[347144365,1735522244009,-1406.09166,0.00014897,2]
[347144562,1735522246089,-532.77466054,0.00014897,2]
[347144563,1735522246102,-17393.18664573,0.00014897,2]
[347144564,1735522246113,-2517.91214463,0.00014897,2]
[347144565,1735522246123,-503.29321023,0.00014973,2]
[347144566,1735522246132,-763.948807,0.00015062,2]
[347144567,1735522246225,-2852.5,0.00015062,2]
[347144568,1735522246238,-614.34103574,0.00015062,2]
[347144569,1735522246250,-1413.51905588,0.00015062,2]
[347144570,1735522246261,-4109.6526662,0.00015062,2]
[347144571,1735522246273,-534.36519297,0.00015062,2]
[347144572,1735522246284,-56238.47300822,0.00015062,2]
[347144573,1735522246294,-3891.0,0.00015815,2]
[347144574,1735522246304,-1360.0,0.00016401,2]
[347144575,1735522246317,-150.0,0.00016438,2]
[347144576,1735522246326,-510367.37327022,0.00016479,2]
[347144577,1735522246338,-28422.72312983,0.00016479,2]
[347144578,1735522461180,364.7,0.00023,120]
[347144579,1735522616361,189.95,0.00010137,2]
[347144581,1735522909777,3411.0,0.00023,120]
[347144604,1735523432437,-450.0,0.00012,2]
[347144605,1735523432447,-703.1,0.00012524,2]
[347144606,1735523432457,-500.0,0.00014,2]
[347144607,1735523432466,-250.27,0.00014577,2]
[347144608,1735523432476,-207.76,0.00014636,2]
[347144609,1735523432485,-250.0,0.00014761,2]
[347144610,1735523432494,-1755.35385363,0.00014781,2]
[347144611,1735523432616,-364.06614637,0.00014781,2]
[347144612,1735523432626,-703.1,0.00014788,2]
[347144613,1735523432635,-150.0,0.00014819,2]
[347144614,1735523432645,-153.25871175,0.00014819,2]
[347144615,1735523432654,-154.41963525,0.00014819,2]
[347144616,1735523432664,-200.0,0.00014828,2]
[347144617,1735523432674,-212.79284126,0.0001488,2]
[347144618,1735523432685,-319.5,0.0001488,2]
[347144619,1735523432774,-443.33674267,0.0001488,2]
[347144620,1735523432785,-24.37041607,0.0001488,2]
[347144621,1735523432795,-472.18742776,0.00014889,2]
[347144630,1735523438161,-19.70257224,0.00014889,2]
[347144631,1735523438170,-493.56,0.00014889,2]
[347144632,1735523438179,-1716.2111314,0.00014889,2]
[347144633,1735523438331,-8283.7788686,0.00014889,2]
[347144634,1735523438340,-999.99,0.00014889,2]
[347144635,1735523438349,-149.2311314,0.00014889,2]
[347144636,1735523438522,-1.7588686,0.00014889,2]
[347144638,1735523438533,-150.99,0.00014889,2]
[347144640,1735523438543,-257.59,0.00014889,2]
[347144642,1735523438552,-496.54,0.00014889,2]
[347144644,1735523438561,-499.96,0.00014889,2]
[347144646,1735523438570,-502.71,0.00014889,2]
[347144647,1735523438579,-508.09,0.00014889,2]
[347144648,1735523438589,-508.95,0.00014889,2]
[347144649,1735523438598,-506.09,0.00014889,2]
[347144650,1735523438607,-506.33,0.00014889,2]
[347144651,1735523438619,-505.36,0.00014889,2]
[347144652,1735523438633,-492.81,0.0001489,2]
[347144653,1735523438643,-495.45,0.0001489,2]
[347144654,1735523438653,-502.72,0.0001489,2]
[347144655,1735523438662,-490.44,0.0001489,2]
[347144656,1735523438672,-497.26,0.0001489,2]
[347144657,1735523438681,-509.0,0.00014891,2]
[347144658,1735523438691,-500.0,0.00014891,2]
[347144659,1735523438700,-1800.0,0.00014891,2]
[347144660,1735523438710,-500.0,0.00014891,2]
[347144662,1735523438720,-241.92,0.000149,2]
[347144664,1735523438730,-1500.0,0.00014985,2]
[347144666,1735523438739,-250.0,0.00014985,2]
[347144668,1735523438749,-250.0,0.00014998,2]
[347144670,1735523438758,-7651.0,0.00015,2]
[347144672,1735523438767,-1048.28,0.00015043,2]
[347144674,1735523438776,-197.72,0.00015176,2]
[347144676,1735523438786,-1311.85,0.0001522,2]
[347144678,1735523438795,-2999.99,0.0001522,2]
[347144680,1735523438804,-2999.99,0.0001522,2]
[347144682,1735523438814,-2999.99,0.0001522,2]
[347144684,1735523438823,-2999.99,0.0001522,2]
[347144686,1735523438833,-2999.98,0.0001522,2]
[347144688,1735523438843,-501.59,0.00015226,2]
[347144690,1735523438852,-168.97,0.00015295,2]
[347144692,1735523438862,-500.0,0.00015315,2]
[347144694,1735523438871,-1057.0,0.00015352,2]
[347144696,1735523438880,-206.24,0.00015392,2]
[347144698,1735523438889,-184.6658,0.00015456,2]
[347144700,1735523438901,-2119.42,0.0001552,2]
[347144702,1735523438911,-436.06,0.00015534,2]
[347144704,1735523438920,-1109.1,0.00015534,2]
[347144706,1735523438929,-771.25,0.00015534,2]
[347144708,1735523438938,-437.4,0.00015534,2]
[347144710,1735523438950,-771.25,0.00015534,2]
[347144712,1735523438959,-437.4,0.00015534,2]
[347144714,1735523438969,-771.25,0.00015534,2]
[347144716,1735523438978,-437.4,0.00015534,2]
[347144718,1735523438988,-771.25,0.00015534,2]
[347144720,1735523438997,-771.25,0.00015534,2]
[347144722,1735523439006,-777.55,0.00015534,2]
[347144724,1735523439015,-771.25,0.00015534,2]
[347144726,1735523439024,-877.96,0.00015534,2]
[347144728,1735523439034,-500.9435296,0.00015619,2]
[347144730,1735523439043,-440.32,0.00015671,2]
[347144732,1735523439052,-978.41,0.00015671,2]
[347144734,1735523439060,-151.07,0.00015671,2]
[347144736,1735523439070,-978.41,0.00015671,2]
[347144738,1735523439079,-150.0,0.00015671,2]
[347144740,1735523439088,-978.41,0.00015671,2]
[347144742,1735523439097,-150.0,0.00015671,2]
[347144744,1735523439106,-981.31,0.00015671,2]
[347144746,1735523439117,-501.007,0.0001568,2]
[347144748,1735523439128,-1107.0,0.00015702,2]
[347144750,1735523439137,-7554.79061383,0.0001572,2]
[347144752,1735523439147,-1267.589,0.00015753,2]
[347144754,1735523439156,-2013.0,0.00015753,2]
[347144756,1735523439165,-634.0,0.00015753,2]
[347144758,1735523439174,-150.298,0.00015753,2]
[347144760,1735523439184,-566.653,0.00015753,2]
[347144762,1735523439193,-1900.0,0.00015753,2]